fUSD/lending_fUSD_20240210
["ID","MTS","AMOUNT","RATE_DAILY","PERIOD"]
[313705584,1707600639779,-500.0,0.00028699,2]
[313705585,1707600639788,-500.0,0.00028699,2]
[313705586,1707600639797,-500.0,0.00028699,2]
[313705588,1707600639806,-500.0,0.00028699,2]
[313705589,1707600639815,-500.0,0.00028699,2]
[313705590,1707600639824,-500.0,0.00028699,2]
[313705591,1707600639833,-500.0,0.00028699,2]
[313705592,1707600639842,-500.0,0.00028699,2]
[313705593,1707600639851,-500.0,0.00028699,2]
[313705594,1707600639860,-500.0,0.00028699,2]
[313705595,1707600639869,-500.0,0.00028699,2]
[313705596,1707600639879,-500.0,0.000287,2]
[313705597,1707600639888,-3398.0,0.000287,2]
[313705598,1707600639897,-150.1,0.000287,2]
[313705600,1707600639907,-16483.0,0.000287,2]
[313705602,1707600639916,-449.02,0.00028742,2]
[313705604,1707600639926,-155.0,0.00028767,2]
[313705605,1707600639936,-1000.0,0.000288,2]
[313705606,1707600639947,-670.11231505,0.00029,15]
[313705607,1707600639956,-1350.0,0.00029,3]
[313705608,1707600639965,-8442.30865505,0.00029002,2]
[313705609,1707600639974,-872.0,0.00029631,2]
[313705610,1707600639983,-160.0,0.00029634,2]
[313705611,1707600639993,-195.30006218,0.00029699,2]
[313705612,1707600640003,-641.35,0.00029756,2]
[313705613,1707600640012,-176.39522567,0.000298,2]
[313705614,1707600640022,-271.63797113,0.00029997,2]
[313705615,1707600640032,-604.65201373,0.00029997,2]
[313705616,1707600640041,-50000.0,0.0003,2]
[313705617,1707600640050,-1324.6387124,0.0003,3]
[313705618,1707600640059,-3000.0,0.0003,2]
[313705619,1707600640069,-272.21882599,0.0003,5]
[313705620,1707600640078,-405.5599385,0.0003,4]
[313705621,1707600640087,-19139.32910649,0.0003,4]
[313705622,1707600640097,-448.73493482,0.0003,4]
[313705623,1707600640107,-9687.39994509,0.0003,2]
[313705624,1707600640117,-585.639124,0.0003,2]
[313705625,1707600640127,-817.86462422,0.0003,4]
[313705626,1707600640136,-903.25290285,0.0003,4]
[313705627,1707600640145,-641.58618234,0.0003,2]
[313705628,1707600640154,-500.0,0.0003,2]
[313705629,1707600640163,-153.98,0.0003,2]
[313705630,1707600640173,-1664.15218,0.0003,2]
[313705631,1707600640183,-1664.15218,0.0003,2]
[313705632,1707600640193,-1664.15218,0.0003,2]
[313705633,1707600640202,-1664.15218,0.0003,2]
[313705634,1707600640212,-1664.15218,0.0003,2]
[313705635,1707600640225,-1664.15219,0.0003,2]
[313705636,1707600640235,-1249.80328062,0.00030032,4]
[313705637,1707600640244,-150.0,0.00030137,2]
[313705638,1707600640254,-155.0,0.00030137,2]
[313705639,1707600640265,-221.35,0.00030152,2]
[313705640,1707600640276,-8442.30865505,0.00030527,2]
[313705641,1707600640287,-426.0,0.000306,2]
[313705642,1707600640298,-150.0,0.00030714,2]
[313705643,1707600640307,-1500.0,0.000309,11]
[313705644,1707600640316,-50000.0,0.00031,2]
[313705645,1707600640325,-2012.48,0.00031,2]
[313705646,1707600640335,-1400.0,0.00031,3]
[313705647,1707600640344,-535.965672,0.00031,2]
[313705648,1707600640354,-449.02,0.00031006,2]
[313705649,1707600640363,-475.72373406,0.00031263,2]
[313705650,1707600640372,-193.90657654,0.00031263,2]
[313705651,1707600640381,-150.0,0.00031291,2]
[313705652,1707600640391,-207.0,0.00031353,2]
[313705653,1707600640400,-17265.0,0.00031374,30]
[313705654,1707600640409,-1000.0,0.000315,2]
[313705655,1707600640418,-155.0,0.00031507,2]
[313705656,1707600640427,-180.0,0.00031644,2]
[313705657,1707600640437,-168.77,0.00031644,2]
[313705658,1707600640447,-485.49912552,0.00031799,7]
[313705659,1707600640456,-448.33010291,0.00031799,7]
[313705660,1707600640466,-160.27809314,0.00031799,7]
[313705661,1707600640475,-500.0,0.00031799,7]
[313705662,1707600640484,-425.28405748,0.00031799,7]
[313705663,1707600640493,-500.0,0.00031799,7]
[313705664,1707600640502,-420.33151267,0.00031799,7]
[313705665,1707600640511,-305.11609843,0.00031799,7]
[313705666,1707600640520,-500.0,0.00031799,7]
[313705667,1707600640529,-330633.468685,0.000318,2]
[313705668,1707600640538,-151.0,0.000318,7]
[313705669,1707600640547,-984.205735,0.000318,7]
[313705670,1707600640556,-984.205735,0.000318,7]
[313705671,1707600640565,-150.0,0.00031867,2]
[313705672,1707600640575,-50000.0,0.00032,2]
[313705673,1707600640584,-13153.45698237,0.00032,4]
[313705674,1707600640594,-150.0,0.00032,2]
[313705675,1707600640603,-8442.30865505,0.00032053,3]
[313705676,1707600640612,-359.90004738,0.00032215,2]
[313705677,1707600640621,-872.0,0.00032324,2]
[313705678,1707600640630,-160.0,0.00032328,2]
[313705679,1707600640639,-1249.80328062,0.00032444,6]
[313705680,1707600640648,-150.0,0.00032444,2]
[313705681,1707600640657,-151.0,0.00032641,120]
[313705682,1707600640666,-2012.48,0.00032795,2]
[313705683,1707600640675,-200.26744343,0.00032877,2]
[313705684,1707600640685,-155.0,0.00032877,2]
[313705685,1707600640694,-5138.12748297,0.00032883,3]
[313705686,1707600640703,-99549.24521109,0.00032883,10]
[313705687,1707600640712,-7902.45238348,0.00032883,10]
[313705688,1707600640721,-1101.52642588,0.00032883,3]
[313705689,1707600640730,-43856.56536347,0.00032883,10]
[313705690,1707600640739,-153.98,0.000329,2]
[313705691,1707600640748,-153.98,0.000329,2]
[313705692,1707600640758,-50000.0,0.00033,3]
[313705693,1707600640768,-169.0,0.00033,2]
[313705694,1707600640777,-150.0,0.00033021,2]
[313705695,1707600640787,-320.053793,0.00033082,2]
[313705696,1707600640796,-640.107587,0.00033082,2]
[313705697,1707600640806,-449.02,0.0003327,2]
[313705698,1707600640816,-151.0,0.00033307,30]
[313705699,1707600640827,-320.053793,0.00033495,2]
[313705700,1707600640837,-640.107587,0.00033495,2]
[313705701,1707600640847,-390.72,0.000335,2]
[313705702,1707600640857,-390.72,0.000335,2]
[313705703,1707600640867,-390.72,0.000335,2]
[313705704,1707600640877,-390.72,0.000335,2]
[313705705,1707600640889,-390.72,0.000335,2]
[313705706,1707600640898,-390.72,0.000335,2]
[313705707,1707600640908,-390.72,0.000335,2]
[313705708,1707600640917,-390.72,0.000335,2]
[313705709,1707600640927,-390.72,0.000335,2]
[313705710,1707600640937,-390.72,0.000335,2]
[313705711,1707600640946,-390.72,0.000335,2]
[313705712,1707600640955,-390.72,0.000335,2]
[313705713,1707600640964,-390.72,0.000335,2]
[313705714,1707600640974,-390.72,0.000335,2]
[313705715,1707600640983,-390.72,0.000335,2]
[313705716,1707600640992,-390.72,0.000335,2]
[313705717,1707600641001,-390.72,0.000335,2]
[313705718,1707600641010,-390.72,0.000335,2]
[313705719,1707600641020,-390.72,0.000335,2]
[313705720,1707600641030,-390.72,0.000335,2]
[313705721,1707600641039,-8442.30865505,0.00033578,5]
[313705722,1707600641049,-150.0,0.00033598,2]
[313705723,1707600641057,-150.8623145,0.000339,2]
[313705724,1707600641066,-320.053793,0.00033909,2]
[313705725,1707600641076,-640.107587,0.00033909,2]
[313705726,1707600641086,-151.0,0.00033986,7]
[313705727,1707600641095,-50000.0,0.00034,4]
[313705728,1707600641104,-767.10554147,0.00034,4]
[313705729,1707600641113,-4000.0,0.00034,2]
[313705730,1707600641123,-200.0,0.00034012,5]
[313705731,1707600641132,-150.0,0.00034175,2]
[313705732,1707600641141,-1000.0,0.000342,2]
[313705733,1707600641150,-207.0,0.00034218,7]
[313705734,1707600641159,-155.0,0.00034247,2]
[313705735,1707600641169,-320.053793,0.00034322,2]
[313705736,1707600641178,-640.107587,0.00034322,2]
[313705737,1707600641187,-893.3533,0.0003442,2]
[313705738,1707600641196,-301.946985,0.0003452,2]
[313705739,1707600641206,-150.0,0.0003452,2]
[313705740,1707600641215,-150.0,0.0003452,2]
[313705741,1707600641226,-10000.0,0.00034521,2]
[313705742,1707600641235,-2012.48,0.0003459,2]
[313705743,1707600641244,-151.0,0.0003468,4]
[313705744,1707600641257,-320.053793,0.00034736,2]
[313705745,1707600641267,-640.107587,0.00034736,2]
[313705746,1707600641276,-407.08220599,0.0003475,6]
[313705747,1707600641287,-207.04688739,0.0003475,5]
[313705748,1707600641296,-1062.56657926,0.0003475,6]
[313705749,1707600641306,-1231.22843745,0.0003475,6]
[313705750,1707600641316,-1680.78832617,0.0003475,6]
[313705751,1707600641326,-1136.07545195,0.0003475,5]
[313705752,1707600641335,-1256.22098714,0.0003475,5]
[313705753,1707600641345,-268.17896799,0.0003475,2]
[313705754,1707600641354,-159.25591665,0.0003475,2]
[313705755,1707600641364,-185.09949466,0.0003475,2]
[313705756,1707600641373,-468.88084653,0.0003475,4]
[313705757,1707600641384,-150.0,0.00034751,2]
[313705758,1707600641393,-452.920478,0.00034794,2]
[313705759,1707600641404,-1249.80328062,0.00034856,7]
[313705760,1707600641414,-9013.93953825,0.000349,4]
[313705761,1707600641423,-2355.5913037,0.000349,2]
[313705762,1707600641433,-2355.5913036,0.000349,2]
[313705763,1707600641443,-2355.5913036,0.000349,2]
[313705764,1707600641453,-2355.5913036,0.000349,2]
[313705765,1707600641462,-2355.5913036,0.000349,2]
[313705766,1707600641471,-2355.5913036,0.000349,2]
[313705767,1707600641481,-2355.5913036,0.000349,2]
[313705768,1707600641491,-2355.5913036,0.000349,2]
[313705769,1707600641500,-603.893971,0.00034931,2]
[313705770,1707600641510,-50000.0,0.00035,5]
[313705771,1707600641520,-1457.18202735,0.00035,5]
[313705772,1707600641531,-180.89168206,0.00035,4]
[313705773,1707600641545,-155.0,0.00035,2]
[313705774,1707600641555,-450.84278538,0.00035,4]
[313705775,1707600641566,-40317.18644522,0.00035,4]
[313705776,1707600641575,-156.8412092,0.00035,4]
[313705777,1707600641586,-16314.25993829,0.00035,2]
[313705778,1707600641597,-158.851713,0.00035,7]
[313705779,1707600641607,-984.205735,0.00035,7]
[313705780,1707600641616,-984.205735,0.00035,7]
[313705781,1707600641627,-1470.91479866,0.00035,2]
[313705782,1707600641637,-165.08278709,0.00035,2]
[313705783,1707600641647,-165.08278709,0.00035,2]
[313705784,1707600641657,-165.08278709,0.00035,2]
[313705785,1707600641667,-165.08278709,0.00035,2]
[313705786,1707600641676,-165.08278709,0.00035,2]
[313705787,1707600641686,-165.08278709,0.00035,2]
[313705788,1707600641695,-165.08278709,0.00035,2]
[313705789,1707600641704,-165.08278709,0.00035,2]
[313705790,1707600641714,-165.08278709,0.00035,2]
[313705791,1707600641723,-165.08278709,0.00035,2]
[313705792,1707600641733,-165.08278709,0.00035,2]
[313705793,1707600641743,-165.08278709,0.00035,2]
[313705794,1707600641752,-165.08278709,0.00035,2]
[313705795,1707600641763,-165.08278709,0.00035,2]
[313705796,1707600641773,-165.08278709,0.00035,2]
[313705797,1707600641785,-165.08278709,0.00035,2]
[313705798,1707600641794,-165.08278709,0.00035,2]
[313705799,1707600641808,-165.08278709,0.00035,2]
[313705800,1707600642080,-165.08278709,0.00035,2]
[313705801,1707600642090,-165.08278709,0.00035,2]
[313705802,1707600642100,-165.08278709,0.00035,2]
[313705803,1707600642109,-165.08278709,0.00035,2]
[313705804,1707600642118,-165.08278709,0.00035,2]
[313705805,1707600642128,-10000.0,0.00035,3]
[313705806,1707600642138,-754.867464,0.00035068,2]
[313705807,1707600642146,-8442.30865505,0.00035104,7]
[313705808,1707600642156,-150.0,0.00035328,2]
[313705809,1707600642166,-1056.81445,0.00035342,2]
[313705811,1707600642175,-58000.0,0.00035379,3]
[313705813,1707600642184,-151.0,0.00035388,2]
[313705815,1707600642194,-2355.5913036,0.00035432,2]
[313705816,1707600642203,-189.73085466,0.000355,30]
[313705818,1707600642214,-449.02,0.00035534,2]
[313705819,1707600642223,-390.72,0.000356,3]
[313705820,1707600642233,-390.72,0.000356,3]
[313705821,1707600642244,-390.72,0.000356,3]
[313705822,1707600642254,-390.72,0.000356,3]
[313705823,1707600642264,-390.72,0.000356,3]
[313705824,1707600642274,-390.72,0.000356,3]
[313705825,1707600642284,-390.72,0.000356,3]
[313705826,1707600642294,-390.72,0.000356,3]
[313705827,1707600642303,-390.72,0.000356,3]
[313705828,1707600642314,-390.72,0.000356,3]
[313705829,1707600642324,-390.72,0.000356,3]
[313705830,1707600642333,-390.72,0.000356,3]
[313705831,1707600642342,-390.72,0.000356,3]
[313705832,1707600642352,-390.72,0.000356,3]
[313705833,1707600642366,-390.72,0.000356,3]
[313705834,1707600642376,-390.72,0.000356,3]
[313705835,1707600642386,-390.72,0.000356,3]
[313705836,1707600642396,-390.72,0.000356,3]
[313705837,1707600642406,-390.72,0.000356,3]
[313705840,1707600642416,-390.72,0.000356,3]
[313705842,1707600642426,-1750.39,0.00035616,2]
[313705843,1707600642435,-7165.69,0.00035616,2]
[313705844,1707600642444,-155.0,0.00035617,2]
[313705845,1707600642454,-10000.0,0.00035798,2]
[313705846,1707600642464,-153.98,0.000359,3]
[313705847,1707600642473,-153.98,0.000359,3]
[313705848,1707600642482,-150.0,0.00035905,2]
[313705849,1707600642491,-50000.0,0.00036,6]
[313705850,1707600642500,-2500.0,0.00036,5]
[313705851,1707600642510,-299.82335503,0.00036,4]
[313705852,1707600642522,-8207.44411375,0.00036,30]
[313705853,1707600642533,-150.0,0.00036,2]
[313705854,1707600642543,-435.98431216,0.00036005,2]
[313705855,1707600642552,-370.99784346,0.00036264,2]
[313705856,1707600642561,-2012.48,0.00036385,2]
[313705857,1707600642572,-1811.10939592,0.00036436,4]
[313705858,1707600642582,-675.95,0.00036438,2]
[313705859,1707600642591,-150.0,0.00036482,2]
[313705860,1707600642601,-8442.30865505,0.00036629,9]
[313705861,1707600642610,-184.33082141,0.00036889,7]
[313705862,1707600642619,-150.0,0.00036909,2]
[313705863,1707600642629,-153.7803214,0.00036939,7]
[313705864,1707600642638,-150.0,0.00036969,2]
[313705865,1707600642647,-155.01257736,0.00036977,7]
[313705866,1707600642656,-155.0,0.00036987,2]
[313705867,1707600642665,-50000.0,0.00037,7]
[313705868,1707600642674,-4205.94905768,0.00037,14]
[313705869,1707600642684,-8000.0,0.00037,21]
[313705870,1707600642693,-1000.0,0.00037,2]
[313705871,1707600642702,-2355.5913036,0.00037011,2]
[313705872,1707600642711,-150.0,0.00037017,2]
[313705873,1707600642720,-177.8921113,0.00037026,7]
[313705874,1707600642730,-153.7803214,0.00037038,7]
[313705875,1707600642739,-150.0,0.00037052,2]
[313705876,1707600642749,-557.74133779,0.00037055,7]
[313705877,1707600642758,-150.0,0.00037059,2]
[313705878,1707600642767,-10000.0,0.00037075,2]
[313705879,1707600642776,-349.53236693,0.00037076,7]
[313705880,1707600642788,-557.74133779,0.00037077,7]
[313705881,1707600642797,-207.0,0.00037082,13]
[313705882,1707600642806,-150.0,0.00037094,2]
[313705883,1707600642815,-150.0,0.00037108,2]
[313705884,1707600642825,-150.0,0.00037115,2]
[313705886,1707600642834,-150.0,0.00037116,2]
[313705887,1707600642843,-150.0,0.00037154,2]
[313705888,1707600642852,-150.0,0.00037168,2]
[313705889,1707600642861,-150.0,0.00037168,2]
[313705890,1707600642870,-349.53236693,0.00037177,7]
[313705891,1707600642879,-152.20144922,0.00037187,7]
[313705892,1707600642888,-640.12320373,0.00037203,4]
[313705893,1707600642897,-557.74133779,0.0003722,7]
[313705894,1707600642906,-150.0,0.00037226,2]
[313705895,1707600642916,-1500.0,0.00037245,2]
[313705896,1707600642925,-150.0,0.00037257,2]
[313705897,1707600642934,-150.0,0.0003726,2]
[313705898,1707600642943,-1249.80328062,0.00037268,8]
[313705899,1707600642952,-153.7803214,0.00037268,7]
[313705900,1707600642961,-150.0,0.00037275,2]
[313705901,1707600642971,-156.59762891,0.00037286,7]
[313705902,1707600642980,-150.0,0.00037301,2]
[313705903,1707600642989,-150.0,0.00037319,2]
[313705904,1707600642998,-150.0,0.00037323,2]
[313705905,1707600643008,-150.0,0.00037345,2]
[313705906,1707600643018,-1500.0,0.00037347,2]
[313705907,1707600643026,-1500.0,0.00037349,2]
[313705908,1707600643037,-150.0,0.00037353,2]
[313705909,1707600643047,-150.0,0.00037355,2]
[313705910,1707600643056,-500.0,0.00037356,2]
[313705911,1707600643065,-500.0,0.00037356,2]
[313705912,1707600643074,-500.0,0.00037356,2]
[313705913,1707600643084,-342.65,0.00037356,2]
[313705914,1707600643093,-155.97785463,0.00037356,7]
[313705915,1707600643102,-4000.0,0.0003738,28]
[313705916,1707600643111,-150.0,0.00037426,2]
[313705917,1707600643120,-154.54460155,0.00037439,7]
[313705918,1707600643131,-6468.14925913,0.00037448,22]
[313705919,1707600643140,-150.0,0.00037449,2]
[313705920,1707600643149,-1000.0,0.0003745,10]
[313705921,1707600643162,-1000.0,0.0003745,10]
[313705922,1707600643172,-150.0,0.00037454,2]
[313705923,1707600643182,-349.53236693,0.00037463,7]
[313705924,1707600643192,-150.0,0.00037493,2]
[313705925,1707600643202,-150.0,0.00037496,2]
[313705926,1707600643211,-152.78225216,0.00037521,2]
[313705927,1707600643221,-150.0,0.00037524,2]
[313705928,1707600643231,-150.0,0.00037527,2]
[313705929,1707600643243,-150.0,0.00037532,2]
[313705930,1707600643252,-150.0,0.00037538,2]
[313705931,1707600643261,-155.01257736,0.00037546,7]
[313705932,1707600643271,-150.0,0.00037551,2]
[313705933,1707600643281,-150.0,0.00037582,2]
[313705934,1707600643290,-557.74133779,0.00037586,7]
[313705935,1707600643300,-150.0,0.00037599,2]
[313705936,1707600643310,-390.72,0.000376,3]
[313705937,1707600643320,-390.72,0.000376,3]
[313705938,1707600643330,-390.72,0.000376,3]
[313705939,1707600643339,-390.72,0.000376,3]
[313705940,1707600643349,-390.72,0.000376,3]
[313705941,1707600643358,-390.72,0.000376,3]
[313705942,1707600643367,-390.72,0.000376,3]
[313705943,1707600643377,-390.72,0.000376,3]
[313705944,1707600643386,-390.72,0.000376,3]
[313705945,1707600643395,-390.72,0.000376,3]
[313705946,1707600643404,-390.72,0.000376,3]
[313705947,1707600643414,-390.72,0.000376,3]
[313705948,1707600643423,-390.72,0.000376,3]
[313705949,1707600643432,-390.72,0.000376,3]
[313705950,1707600643442,-390.72,0.000376,3]
[313705951,1707600643451,-390.72,0.000376,3]
[313705952,1707600643460,-390.72,0.000376,3]
[313705953,1707600643469,-390.72,0.000376,3]
[313705954,1707600643478,-390.72,0.000376,3]
[313705955,1707600643487,-390.72,0.000376,3]
[313705956,1707600643496,-153.7803214,0.00037614,7]
[313705957,1707600643505,-50000.0,0.00037617,15]
[313705958,1707600643514,-50000.0,0.00037617,15]
[313705959,1707600643524,-150.0,0.00037621,2]
[313705960,1707600643534,-150.0,0.00037627,2]
[313705961,1707600643543,-200000.0,0.00037628,15]
[313705962,1707600643552,-200000.0,0.00037628,15]
[313705963,1707600643561,-984.205735,0.00037628,7]
[313705964,1707600643570,-984.205735,0.00037628,7]
[313705965,1707600643580,-150.0,0.00037635,2]
[313705966,1707600643589,-10000.0,0.00037654,10]
[313705967,1707600643598,-150.0,0.00037657,2]
[313705968,1707600643607,-152.20144922,0.00037667,7]
[313705969,1707600643616,-492.42647355,0.00037671,2]
[313705970,1707600643625,-1777.48,0.00037691,5]
[313705971,1707600643634,-150.0,0.00037706,2]
[313705972,1707600643643,-150.0,0.00037708,2]
[313705973,1707600643652,-150.0,0.00037734,2]
[313705974,1707600643661,-500.0,0.00037743,2]
[313705975,1707600643671,-200.0,0.00037743,2]
[313705976,1707600643680,-200.0,0.00037743,3]
[313705977,1707600643689,-150.0,0.00037767,2]
[313705978,1707600643698,-150.0,0.00037769,2]
[313705979,1707600643707,-449.02,0.00037798,2]
[313705980,1707600643716,-1900.0,0.000378,13]
[313705981,1707600643725,-150.0,0.00037805,2]
[313705982,1707600643734,-800.0,0.00037823,5]
[313705983,1707600643743,-150.0,0.00037843,2]
[313705984,1707600643752,-1500.0,0.0003786,2]
[313705985,1707600643761,-150.0,0.00037896,2]
[313705986,1707600643771,-150.0,0.00037896,2]
[313705987,1707600643783,-150.0,0.00037896,2]
[313705988,1707600643792,-16816.49524538,0.00037897,4]
[313705989,1707600643801,-155.0,0.00037897,4]
[313705990,1707600643810,-233.93753511,0.00037897,4]
[313705991,1707600643819,-296.24717762,0.00037897,4]
[313705992,1707600643828,-330.9142419,0.00037898,4]
[313705993,1707600643837,-598.64663937,0.00037898,4]
[313705994,1707600643846,-150.0,0.00037898,2]
[313705995,1707600643857,-150.01,0.00037899,2]
[313705996,1707600643866,-3312.93754323,0.00037899,2]
[313705997,1707600643875,-150.0,0.00037899,30]
[313705998,1707600643884,-150.0,0.00037899,30]
[313705999,1707600643893,-150.0,0.00037899,30]
[313706000,1707600643902,-4838.94126873,0.000379,2]
[313706001,1707600643913,-3502.55345336,0.000379,4]
[313706002,1707600643928,-155.0,0.000379,4]
[313706003,1707600643945,-687.67311898,0.000379,4]
[313706004,1707600643961,-1973.77069874,0.000379,2]
[313706005,1707600643973,-200.0,0.000379,2]
[313706006,1707600643989,-517.42177987,0.000379,6]
[313706007,1707600644004,-155.0,0.000379,4]
[313706008,1707600644020,-6536.96787468,0.000379,4]
[313706009,1707600644036,-992.8,0.000379,2]
[313706010,1707600644051,-300.0,0.000379,13]
[313706011,1707600644062,-659389.231014,0.000379,2]
[313706012,1707600644076,-984.205735,0.000379,7]
[313706013,1707600644090,-984.205735,0.000379,7]
[313706014,1707600644102,-2292.579249,0.00037907,2]
[313706015,1707600644116,-155.01257736,0.00037987,7]
[313706016,1707600644129,-50000.0,0.00038,8]
[313706017,1707600644141,-4974.53413545,0.00038,4]
[313706018,1707600644157,-300.0,0.00038,39]
[313706019,1707600644172,-21661.9994435,0.00038,2]
[313706020,1707600644185,-1000.0,0.00038001,10]
[313706021,1707600644198,-1000.0,0.00038001,10]
[313706022,1707600644212,-500.0,0.00038062,6]
[313706023,1707600644230,-500.0,0.00038062,6]
[313706024,1707600644245,-500.0,0.00038062,6]
[313706025,1707600644260,-556.37082515,0.00038062,6]
[313706026,1707600644273,-557.74133779,0.00038139,7]
[313706027,1707600644285,-8442.30865505,0.00038155,11]
[313706028,1707600644296,-2012.48,0.0003818,2]
[313706029,1707600644308,-153.7803214,0.00038199,7]
[313706030,1707600644321,-150.0,0.00038212,2]
[313706031,1707600644334,-150.51389881,0.00038231,7]
[313706032,1707600644349,-150.51389881,0.00038233,7]
[313706033,1707600644359,-8000.0,0.00038284,15]
[313706034,1707600644370,-200.0,0.000383,13]
[313706035,1707600644382,-200.0,0.000383,2]
[313706036,1707600644394,-150.0,0.000383,13]
[313706037,1707600644406,-153.7803214,0.00038328,7]
[313706038,1707600644418,-10000.0,0.00038352,2]
[313706039,1707600644430,-17228.77816909,0.00038354,4]
[313706040,1707600644443,-1858.86108655,0.00038354,4]
[313706041,1707600644455,-511.72076171,0.00038354,4]
[313706042,1707600644467,-155.0,0.00038354,4]
[313706043,1707600644478,-369.0897773,0.00038354,4]
[313706044,1707600644490,-155.71257436,0.00038354,4]
[313706045,1707600644502,-697.33897721,0.00038354,4]
[313706046,1707600644514,-367.720734,0.00038354,4]
[313706047,1707600644525,-199.68117382,0.00038354,4]
[313706048,1707600644538,-177.42742533,0.00038354,4]
[313706049,1707600644550,-155.35453074,0.00038354,4]
[313706050,1707600644567,-156.28496182,0.00038354,4]
[313706051,1707600644578,-372.94944824,0.00038354,4]
[313706052,1707600644590,-158.0111281,0.00038354,4]
[313706053,1707600644602,-190.04683943,0.00038354,4]
[313706054,1707600644613,-201.69687054,0.00038354,4]
[313706055,1707600644625,-180.11477874,0.00038354,7]
[313706056,1707600644637,-155.0,0.00038354,4]
[313706057,1707600644648,-282.42557399,0.00038354,4]
[313706058,1707600644660,-1103.44947007,0.00038355,30]
[313706059,1707600644672,-150.0,0.00038355,30]
[313706060,1707600644683,-287.82387995,0.00038355,2]
[313706061,1707600644694,-1222.45245094,0.00038356,15]
[313706062,1707600644706,-1204.85302005,0.00038356,15]
[313706063,1707600644718,-6162.76719897,0.00038356,15]
[313706064,1707600644729,-513.8127483,0.00038356,15]
[313706065,1707600644741,-500.0,0.00038356,30]
[313706066,1707600644753,-438.72887556,0.00038356,30]
[313706067,1707600644764,-507.45071265,0.00038356,30]
[313706068,1707600644776,-500.0,0.00038356,30]
[313706069,1707600644789,-625.49,0.00038356,30]
[313706070,1707600644800,-769.96,0.00038356,2]
[313706071,1707600644811,-500.0,0.00038356,30]
[313706072,1707600644823,-500.0,0.00038356,30]
[313706073,1707600644834,-500.0,0.00038356,30]
[313706074,1707600644846,-570.00976586,0.00038356,30]
[313706075,1707600644857,-500.0,0.00038356,30]
[313706076,1707600644868,-500.0,0.00038356,30]
[313706077,1707600644880,-500.0,0.00038356,30]
[313706078,1707600644892,-500.0,0.00038356,30]
[313706079,1707600644903,-500.0,0.00038356,30]
[313706080,1707600644914,-527.99822669,0.00038356,30]
[313706081,1707600644927,-500.0,0.00038356,30]
[313706082,1707600644939,-500.0,0.00038356,30]
[313706083,1707600644951,-517.07,0.00038356,30]
[313706084,1707600644963,-613.18,0.00038356,30]
[313706085,1707600644975,-500.0,0.00038356,30]
[313706086,1707600644987,-538.08,0.00038356,30]
[313706087,1707600644998,-500.0,0.00038356,30]
[313706088,1707600645010,-509.62533192,0.00038356,30]
[313706089,1707600645022,-500.0,0.00038356,30]
[313706090,1707600645034,-1000.0,0.00038356,2]
[313706091,1707600645045,-500.0,0.00038356,30]
[313706092,1707600645057,-503.73,0.00038356,30]
[313706093,1707600645069,-500.0,0.00038356,30]
[313706094,1707600645080,-500.0,0.00038356,30]
[313706095,1707600645092,-500.0,0.00038356,2]